Cogmind - Beta 13 @@@ ROGUE MODE // 2024.06.06 @ 01:35:46 Player: Findu Result: Destroyed by as-26842 with Assembled Heavy Rifle Performance ------------- Evolutions (2) 1000 Regions Visited (6) 1200 Robots Destroyed (81) 405 Value Destroyed (2347) 2347 Prototype IDs (4) 80 Alien Tech Used (0) 0 Bonus (987) 987 TOTAL SCORE: 6019 Bonus ------- High Alert Combat Kills 425 Follower Combat Kills 62 Entered Garrisons 200 Aligned with FarCom 300 Cogmind --------- Core Integrity 0/550 Matter 113/300 Energy 100/100 System Corruption 11% Temperature Cool (20) Movement Core (200) Ox3 Location -8/Garrison Parts ------- > --- POWER (1) -------- (None) > --- PROPULSION (3) --- (None) > --- UTILITY (5) ------ (None) > --- WEAPON (2) ------- AWS/Gauss > --- INVENTORY (5) ---- Trap Scanner Peak State ------------ > --- POWER ------------ Light Angular Momentum Engine > --- PROPULSION ------- Light Treads Wheel Wheel > --- UTILITY ---------- Humpback Experimental Sensor Array Signal Interpreter Terrain Scanner > --- WEAPON ----------- AWS/Gauss > --- INVENTORY -------- Improved Ion Engine Small Storage Unit Assault Rifle Rocket Launcher [Rating: 37] Favorites ----------- Power Light Ion Engine Engine Light Ion Engine Power Core Nuclear Core Propulsion Light Treads Treads Light Treads Leg Carbon-fiber Leg Wheel Wheel Utility Small Storage Unit Device Terrain Scanner Storage Small Storage Unit Processor Improved Signal Interpreter Protection Medium Armor Plating Weapon Assault Rifle Energy Gun Advanced Beam Rifle Ballistic Gun Assault Rifle Ballistic Cannon Assault Cannon Launcher Heavy Rocket Launcher Slashing Weapon Katana Build | -11 -10 -10 -10 -9 -8 -8 ------- Run | Yrd Mat Min Exi Min Mat Gar Slots Evolved 4 | . . . . . 4 . Power . | . . . . . . . Propulsion 1 | . . . . . 1 . Utility 3 | . . . . . 3 . Weapon . | . . . . . . . Parts Attached 64 | 7 4 2 1 . 40 10 Power 7 | 1 1 1 . . 3 1 Engine 5 | 1 1 1 . . 1 1 Core 2 | . . . . . 2 . Reactor . | . . . . . . . Propulsion 20 | 2 1 1 . . 16 . Treads 8 | 1 . 1 . . 6 . Leg 2 | . . . . . 2 . Wheel 10 | 1 1 . . . 8 . Hover . | . . . . . . . Flight . | . . . . . . . Utility 14 | 1 2 . . . 10 1 Device 6 | . 1 . . . 4 1 Storage 2 | 1 . . . . 1 . Processor 4 | . 1 . . . 3 . Hackware . | . . . . . . . Protection 2 | . . . . . 2 . Artifact . | . . . . . . . Weapon 23 | 3 . . 1 . 11 8 Energy Gun 4 | 1 . . . . 2 1 Energy Cannon . | . . . . . . . Ballistic Gun 8 | 2 . . 1 . 2 3 Ballistic Cannon 1 | . . . . . 1 . Launcher 7 | . . . . . 3 4 Special Weapon . | . . . . . . . Impact Weapon . | . . . . . . . Slashing Weapon 3 | . . . . . 3 . Piercing Weapon . | . . . . . . . Special Melee Weapon . | . . . . . . . Unidentified Prototypes 4 | . . . 1 . 3 . Parts Lost 23 | . 1 . . . 8 14 Power 4 | . 1 . . . 1 2 Propulsion 8 | . . . . . 5 3 Utility 7 | . . . . . 2 5 Weapon 4 | . . . . . . 4 Highest Loss Streak 13 | . 1 . . . 3 13 To Critical Strikes . | . . . . . . . Average Slot Usage (%) 85 | . 97 100 90 85 83 77 Engine 8 | . 13 14 14 14 6 . Core 2 | . . . . . 2 7 Treads 12 | . 14 14 14 14 13 7 Wheel 13 | . 14 14 14 14 12 15 Device 6 | . 7 . . . 8 6 Storage 10 | . 14 14 14 14 9 7 Processor 13 | . 5 14 14 14 15 8 Protection 1 | . . . . . . 7 Energy Gun 2 | . . . . . 4 1 Ballistic Gun 10 | . 28 28 18 14 4 3 Ballistic Cannon 1 | . . . . . 1 5 Launcher 1 | . . . . . 1 5 Naked Turns 2 | . . . . . . 2 Heaviest Build 227 | 12 13 18 24 24 222 227 Greatest Support 60 | 20 16 10 10 10 60 20 Greatest Overweight (x) 72 | . 1 1 2 2 72 11 Average Overweight (x) 3 | . . 1 1 2 10 9 Largest Inventory Capacity 35 | 8 8 8 8 8 35 35 Average Capacity 21 | 7 8 8 8 8 35 30 Most Carried 27 | 3 5 6 8 8 27 26 Average Carried 9 | 2 4 4 6 7 14 22 Final Capacity 35 | 8 8 8 8 8 35 5 Final Carried 26 | 3 4 5 8 8 26 1 Class Distribution -------------------- 50% | Mutant 38% | Hauler-Skirmisher 5% | Hauler-Assassin 5% | Hauler-Mutant Dominant Class ---------------- Mutant | -10/Materials Mutant | -10/Mines Mutant | -10/Exiles Mutant | -9/Mines Hauler-Skirmisher | -8/Materials Hauler-Skirmisher | -8/Garrison Resources | -11 -10 -10 -10 -9 -8 -8 ----------- Run | Yrd Mat Min Exi Min Mat Gar Matter Collected 1262 | 214 184 155 . 10 675 24 Remotely . | . . . . . . . Salvage Created 2663 | . 197 65 . 67 2142 192 Parts 151 | . 11 6 . 5 113 16 Haulers Intercepted 1 | . . . . . 1 . Recyclers Shooed 2 | . . . . . 2 . Parts Field Recycled . | . . . . . . . Retrieved Matter . | . . . . . . . Parts Self-Destructed . | . . . . . . . Prevented . | . . . . . . . Kills | -11 -10 -10 -10 -9 -8 -8 ------- Run | Yrd Mat Min Exi Min Mat Gar Combat Hostiles Destroyed 75 | . 6 4 . 4 38 23 Guns 45 | . 6 4 . 4 27 4 Cannons 2 | . . . . . 2 . AOE 28 | . . . . . 9 19 Classes Destroyed 13 | . 3 . . . 9 1 Worker 7 | . 1 . . . 6 . Builder 2 | . . . . . 2 . Hauler 1 | . . . . . 1 . Recycler 4 | . . . . . 4 . Mechanic 2 | . . . . . 2 . Watcher 3 | . . . . . 3 . Swarmer 22 | . 3 4 . 4 4 7 Grunt 30 | . 3 . . . 23 4 Brawler 1 | . . . . . 1 . Duelist 2 | . . . . . 2 . Sentry 7 | . . . . . 7 . Hunter 1 | . . . . . 1 . Assembled 12 | . . . . . . 12 Best Kill Streak 22 | . 2 3 . 4 12 22 Combat Bots Only 22 | . 2 3 . 4 8 22 Max Kills in Single Turn 6 | . 1 1 . 2 2 6 Gunslinging . | . . . . . . . Exploded 5 | . . . . . 2 5 Melee . | . . . . . . . Uniques/NPCs Destroyed . | . . . . . . . Combat | -11 -10 -10 -10 -9 -8 -8 -------- Run | Yrd Mat Min Exi Min Mat Gar Hostile Shots Fired 304 | . 45 20 . 23 117 99 Missed 98 | . 15 8 . 8 40 27 Damage Taken 3073 | . 310 143 . 122 1110 1388 Core 649 | . 56 24 . 8 116 445 Absorbed by Shields 48 | . . . . . . 48 Core Remaining (%) 82 | 100 . . . 64 . . Volleys Fired 95 | . 30 8 . . 38 19 Largest 2 | . 2 2 . . 2 2 Hottest 117 | . 40 40 . . 117 94 Shots Fired 288 | . 60 16 . 17 164 31 Gun 240 | . 60 16 . 17 129 18 Cannon 21 | . . . . . 20 1 Launcher 27 | . . . . . 15 12 Special . | . . . . . . . Kinetic 225 | . 60 16 . 17 117 15 Thermal 36 | . . . . . 32 4 Explosive 27 | . . . . . 15 12 Electromagnetic . | . . . . . . . Robot Hit Streak 19 | . 9 6 . 8 19 8 Robot Miss Streak 5 | . 5 2 . 4 3 2 Penetration Max . | . . . . . . . Secondary Targets 2 | . . 2 . . . . Max Gunslinging Chain 1 | . . 1 . . . . Autonomous 106 | . . . . 17 89 . Shots Hit Robots 200 | . 34 11 . 7 128 20 Core Hits 149 | . 12 6 . 5 83 43 Critical Kills 1 | . . . . . 1 . Critical Parts Destroyed 2 | . . . . 1 1 . Critical Strikes 7 | . . . . 1 4 2 Burn 4 | . . . . . 2 2 Destroy 3 | . . . . 1 2 . Melee Attacks 10 | . . . . . 10 . Impact . | . . . . . . . Slashing 10 | . . . . . 10 . Piercing . | . . . . . . . Sneak Attacks 6 | . . . . . 6 . Combat Hostiles . | . . . . . . . Follow-up Attacks . | . . . . . . . Damage Inflicted 7601 | . 437 144 . 232 5329 1459 Guns 4082 | . 437 144 . 232 3096 173 Cannons 255 | . . . . . 255 . Explosions 2809 | . . . . . 1538 1271 Melee 427 | . . . . . 427 . Ramming 28 | . . . . . 13 15 Kinetic 3828 | . 437 144 . 232 2902 113 Thermal 595 | . . . . . 535 60 Explosive 2723 | . . . . . 1452 1271 Electromagnetic . | . . . . . . . Impact . | . . . . . . . Slashing 427 | . . . . . 427 . Piercing . | . . . . . . . Highest Corruption 11 | . . . . . . 11 Average Corruption 5 | . . . . . . 5 Corruption Purged . | . . . . . . . Corruption Blocked . | . . . . . . . Effects 1 | . . . . . . 1 Data Loss (minor) 1 | . . . . . . 1 Overload Shots . | . . . . . . . Overflow Damage 222 | . . . . . 206 16 Projectiles 30 | . . . . . 30 . Explosions 43 | . . . . . 27 16 Melee 149 | . . . . . 149 . Knockbacks 3 | . . . . . 3 . Impact . | . . . . . . . Kinetic 3 | . . . . . 3 . Secondary . | . . . . . . . Self-Inflicted Damage 233 | . . . . . 31 202 Shots 8 | . . . . . 1 7 Rammed 9 | . . . . . 1 8 Targets Rammed 9 | . . . . . 1 8 Kicked . | . . . . . . . Crushed . | . . . . . . . Highest Temperature 336 | . 3 2 . . 336 66 Average Temperature 73 | . 2 2 . . 91 26 Received Heat Transfer 852 | . 120 18 . . 468 246 Siege Activations . | . . . . . . . Robots Corrupted . | . . . . . . . Combat Hostiles . | . . . . . . . Parts Fried . | . . . . . . . Impact Corruptions . | . . . . . . . Robots Melted . | . . . . . . . Combat Hostiles . | . . . . . . . Parts Melted 2 | . . . . . 1 1 Heat Transferred 1308 | . . . . . 1049 259 Parts Sabotaged . | . . . . . . . Parts Stolen . | . . . . . . . Parts Stripped . | . . . . . . . Power Chain Reactions . | . . . . . . . Alert | -11 -10 -10 -10 -9 -8 -8 ------- Run | Yrd Mat Min Exi Min Mat Gar Peak Influence 919 | . 195 105 . 121 919 892 Initial 597 | . . . . . 46 597 Average 308 | . 80 86 . 114 526 686 Maximum Alert Level 3 | . . . . . 3 3 Low Security (%) 58 | 100 100 100 . 100 24 . Level 1 3 | . . . . . 6 . Level 2 19 | . . . . . 30 69 Level 3 19 | . . . . . 37 30 Level 4 . | . . . . . . . Level 5 . | . . . . . . . High Security . | . . . . . . . Max Security . | . . . . . . . Squads Dispatched 12 | . 3 . . . 9 . Investigation 2 | . 1 . . . 1 . Extermination . | . . . . . . . Reinforcement 7 | . 2 . . . 5 . Assault 2 | . . . . . 2 . Garrison 1 | . . . . . 1 . Intercept . | . . . . . . . Searches Triggered . | . . . . . . . Construction Impeded 3 | . . . . . 3 . Haulers Reinforced . | . . . . . . . Active Scanning Responses . | . . . . . . . Cargo Convoy Interrupts . | . . . . . . . Stealth | -11 -10 -10 -10 -9 -8 -8 --------- Run | Yrd Mat Min Exi Min Mat Gar Distress Signals 2 | . . . . . 2 . Communications Jammed . | . . . . . . . Distress Signals . | . . . . . . . Times Spotted 125 | . 13 6 . 5 55 46 Peak Tracking Total 27 | . 4 3 . 4 8 27 Tactical Retreats 5 | . 1 . . 1 2 1 Traps | -11 -10 -10 -10 -9 -8 -8 ------- Run | Yrd Mat Min Exi Min Mat Gar Traps Triggered 1 | . 1 . . . . . Indirectly . | . . . . . . . Trap Hack Attempts . | . . . . . . . Triggered . | . . . . . . . Disarmed . | . . . . . . . Reprogrammed . | . . . . . . . Reused . | . . . . . . . Traps Extracted . | . . . . . . . Installed . | . . . . . . . Triggered . | . . . . . . . Machines | -11 -10 -10 -10 -9 -8 -8 ---------- Run | Yrd Mat Min Exi Min Mat Gar Machines Disabled 11 | . . . . . 11 . Max in Single Turn 4 | . . . . . 4 . Machines Repaired . | . . . . . . . Machines Dismantled . | . . . . . . . Machines Sabotaged . | . . . . . . . Overloaded Fab Kills . | . . . . . . . Hacking | -11 -10 -10 -10 -9 -8 -8 --------- Run | Yrd Mat Min Exi Min Mat Gar Machines Accessed 12 | . . . 3 . 7 2 Terminals 6 | . . . . . 4 2 Fabricators . | . . . . . . . Repair Stations . | . . . . . . . Recycling Units 1 | . . . . . 1 . Scanalyzers 1 | . . . . . 1 . Garrison Access 1 | . . . . . 1 . Total Hacks 52 | . . . 33 . 17 2 Successful 40 | . . . 33 . 6 1 Failed 12 | . . . . . 11 1 Catastrophic 3 | . . . . . 3 . Database Lockouts . | . . . . . . . Manual 3 | . . . 1 . 2 . Terminals 10 | . . . . . 8 2 Fabricators . | . . . . . . . Repair Stations . | . . . . . . . Recycling Units 4 | . . . . . 4 . Scanalyzers 3 | . . . . . 3 . Garrison Access 2 | . . . . . 2 . Terminal Hacks 34 | . . . 33 . . 1 Record 33 | . . . 33 . . . Garrison Registry 1 | . . . . . . 1 Fabricator Hacks . | . . . . . . . Repair Station Hacks . | . . . . . . . Recycling Unit Hacks 3 | . . . . . 3 . Retrieve Matter 2 | . . . . . 2 . Retrieve Components 1 | . . . . . 1 . Scanalyzer 2 | . . . . . 2 . Insert Component 2 | . . . . . 2 . Garrison Access Hacks 1 | . . . . . 1 . Unlock Access 1 | . . . . . 1 . Unauthorized Hacks . | . . . . . . . Terminals . | . . . . . . . Fabricators . | . . . . . . . Repair Stations . | . . . . . . . Recycling Units . | . . . . . . . Scanalyzers . | . . . . . . . Garrison Access . | . . . . . . . Data Cores Recovered . | . . . . . . . Used . | . . . . . . . Hacking Detections 7 | . . . . . 6 1 Full Trace Events 1 | . . . . . 1 . Feedback Events . | . . . . . . . Feedback Blocked . | . . . . . . . Robot Schematics Acquired . | . . . . . . . Robots Built . | . . . . . . . Authchips . | . . . . . . . Time . | . . . . . . . Total Robot Build Rating . | . . . . . . . Part Schematics Acquired . | . . . . . . . Parts Built . | . . . . . . . Authchips . | . . . . . . . Time . | . . . . . . . Total Part Build Rating . | . . . . . . . Parts Repaired . | . . . . . . . Time . | . . . . . . . Parts Recycled . | . . . . . . . Recycled Matter . | . . . . . . . Retrieved Matter . | . . . . . . . Retrieved Components 10 | . . . . . 10 . Parts Scanalyzed . | . . . . . . . Part Schematics Acquired . | . . . . . . . Parts Damaged . | . . . . . . . Bothacking | -11 -10 -10 -10 -9 -8 -8 ------------ Run | Yrd Mat Min Exi Min Mat Gar Used RIF Installer . | . . . . . . . Robots Hacked . | . . . . . . . Non-combat . | . . . . . . . Combat . | . . . . . . . Robot Hacks Applied . | . . . . . . . Relay Couplers Released . | . . . . . . . Fabnet Peak Effective % . | . . . . . . . Robots Rewired . | . . . . . . . Allies Hacked . | . . . . . . . Hacks Repelled . | . . . . . . . Allies | -11 -10 -10 -10 -9 -8 -8 -------- Run | Yrd Mat Min Exi Min Mat Gar Total Allies 1 | . . . . 1 . . Largest Group 1 | . . . . 1 1 . Highest-Rated Group 31 | . . . . 31 31 . Highest-Rated Ally 31 | . . . . 31 31 . Total Orders . | . . . . . . . Ally Attacks 10 | . . . . . 10 . Total Damage 127 | . . . . . 127 . Kills 2 | . . . . . 2 . Allies Corrupted . | . . . . . . . Allies Melted . | . . . . . . . Intel | -11 -10 -10 -10 -9 -8 -8 ------- Run | Yrd Mat Min Exi Min Mat Gar Robot Analysis Total . | . . . . . . . Derelict Logs Recovered 3 | . . 1 . 2 . . Drone Launches . | . . . . . . . Drone Recoveries . | . . . . . . . Exploration | -11 -10 -10 -10 -9 -8 -8 ------------- Run | Yrd Mat Min Exi Min Mat Gar Turns Passed 4871 | 1272 415 158 307 293 2112 314 Spaces Moved 2257 | 580 308 123 292 252 609 93 Core 14 | 2 . . . . 1 11 Treads 100 | 1 . . . . 99 . Legs . | . . . . . . . Wheels 2143 | 577 308 123 292 252 509 82 Hover . | . . . . . . . Flight . | . . . . . . . Fastest Speed 50 | 50 80 95 95 110 185 50 Average Speed 156 | 99 96 95 104 110 287 223 Slowest Speed 3650 | 160 100 95 110 110 3650 245 Overloaded Moves . | . . . . . . . Propulsion Burnouts . | . . . . . . . Robots Hopped . | . . . . . . . Cave-ins Triggered . | . . . . . . . Exploration Rate (%) 49 | 44 56 26 69 69 60 21 Regions Visited 6 Branch Regions 3 Pre-discovered Areas 2 | . . . 1 1 . . Known Exits Taken 5 | . 1 1 1 1 1 . Unknown Exits Taken 1 | 1 . . . . . . Scrap Searched 2 | . . 1 . 1 . . Spaces Dug . | . . . . . . . Terrain Destroyed 351 | . . . . 21 267 63 Melee . | . . . . . . . Projectile 75 | . . . . 21 54 . AOE 276 | . . . . . 213 63 Terrain Rammed . | . . . . . . . Walls Destroyed . | . . . . . . . Machines Disabled . | . . . . . . . Actions | -11 -10 -10 -10 -9 -8 -8 --------- Run | Yrd Mat Min Exi Min Mat Gar Total 3379 | 1269 365 148 296 268 873 160 Wait 895 | 680 21 11 . 13 140 30 Move 2252 | 579 307 122 291 251 609 93 Hop . | . . . . . . . Pick Up 24 | 2 1 2 1 2 16 . Fast Attach 25 | 7 2 . 1 . 14 1 Attach 20 | . 1 . . . 15 4 Detach 21 | 1 1 . 2 . 17 . Swap 19 | . 1 2 . . 11 5 Drop 9 | . 1 3 1 2 2 . Fire 95 | . 30 8 . . 38 19 Melee 10 | . . . . . 10 . Ram 9 | . . . . . 1 8 Kick . | . . . . . . . Crush . | . . . . . . . Escape Stasis . | . . . . . . . Rewire . | . . . . . . . Trap . | . . . . . . . Miscellaneous . | . . . . . . . Route ------- -11/Scrapyard -10/Materials (discovered 3 exits: *Mat x2 / *Min) -10/Mines (discovered 2 exits: *Mat / *Exi) -10/Exiles -9/Mines -8/Materials (discovered 4 exits: *Fac x3 / Gar) -8/Garrison (discovered 4 exits: [Mat x4]) History --------- Turn | Location | Event 11 | -11/Scrapyard | Discovered new exit (range 16) 1273 | -11/Scrapyard | Entered Materials 1274 | -10/Materials | Build established: Mutant 1501 | -10/Materials | Discovered new exit (range 11) 1564 | -10/Materials | Identified exit to Materials 1584 | -10/Materials | Discovered exit to Materials (range 10) 1675 | -10/Materials | Discovered new exit (range 13) 1687 | -10/Materials | Identified exit to Mines 1688 | -10/Materials | Entered Mines 1693 | -10/Mines | Met a Derelict bent on vengeance 1725 | -10/Mines | Discovered exit to Materials (range 12) 1740 | -10/Mines | Joined a pair of Derelicts in attacking an 0b10 outpost 1800 | -10/Mines | Learned Materials emergency access door positions 1841 | -10/Mines | Deemed a non-threat by the Exiles lab entrance 1842 | -10/Mines | Discovered new exit (range 5) 1845 | -10/Mines | Identified exit to Exiles 1846 | -10/Mines | Entered Exiles 1869 | -10/Exiles | Met 8R-AWN 1885 | -10/Exiles | Met EX-HEX 1911 | -10/Exiles | Met EX-BIN 1927 | -10/Exiles | Aligned with FarCom system 1928 | -10/Exiles | Given EX-Vault access code 1951 | -10/Exiles | Opened EX-Vault 1958 | -10/Exiles | Found Prototype Ballistic Gun 1958 | -10/Exiles | Identified AWS/Gauss 2004 | -10/Exiles | Warned to stay clear of 0b10 Research branches 2042 | -10/Exiles | Met EX-DEC 2090 | -10/Exiles | Learned location of Zion (-7) 2141 | -10/Exiles | Discovered new exit (range 14) 2152 | -10/Exiles | Identified exit to Mines 2153 | -10/Exiles | Left Exiles lab with AWS/Gauss 2153 | -10/Exiles | Entered Mines 2158 | -9/Mines | Learned location of 1 exit from Materials 2199 | -9/Mines | Received a Rocket Launcher from a helpful Derelict 2225 | -9/Mines | Found a damaged Exp. Sensor Array with a note attached 2228 | -9/Mines | Found Prototype Device 2315 | -9/Mines | YI-UF0 nonchalantly dropped a Grenade Launcher on the ground 2433 | -9/Mines | Discovered new exit (range 8) 2436 | -9/Mines | Received a Mining Laser from a helpful Derelict 2440 | -9/Mines | Identified exit to Materials 2446 | -9/Mines | Entered Materials 2446 | -8/Materials | Accompanied by 1 ally 2446 | -8/Materials | Evolved 4 slots: Propulsion x1, Utility x3 2447 | -8/Materials | Identified exit to Factory 2450 | -8/Materials | Identified Exp. Sensor Array 2753 | -8/Materials | Build established: Hauler-Skirmisher 3055 | -8/Materials | Destroyed 8 combat bots 3364 | -8/Materials | Destroyed 7 combat bots 3367 | -8/Materials | Lost 3 parts (3n) 3446 | -8/Materials | Discovered exit to Factory (range 12) 3646 | -8/Materials | First assault squad dispatched 4187 | -8/Materials | Discovered exit to Factory (range 10) 4498 | -8/Materials | Garrison activated, responded to threat 4558 | -8/Materials | Identified exit to Garrison 4558 | -8/Materials | Entered Garrison 4621 | -8/Garrison | Discovered new exit (range 31) 4621 | -8/Garrison | Discovered new exit (range 46) 4621 | -8/Garrison | Discovered new exit (range 37) 4621 | -8/Garrison | Discovered new exit (range 22) 4628 | -8/Garrison | Triggered checkpoint 4772 | -8/Garrison | Triggered checkpoint 4772 | -8/Garrison | Triggered checkpoint 4821 | -8/Garrison | Assembled breached garrison interior 4835 | -8/Garrison | Core integrity fell below 50% 4854 | -8/Garrison | Destroyed 22 combat bots 4857 | -8/Garrison | Core integrity fell below 20% 4871 | -8/Garrison | System corruption reached 10% 4872 | -8/Garrison | Destroyed by as-26842 with Assembled Heavy Rifle Last Messages --------------- 04841_ System corrupted by crushing effect (+4). 04847_ ALERT: Garrison interior compromised. 04853_ Hvy. Assault Rifle destroyed. 04853_ System corrupted by crushing effect (+2). 04854_ Slammed into as-70386. 04856_ System corrupted: Component data lost. 04861_ Imp. Ion Engine destroyed. 04861_ System corrupted by crushing effect (+1). 04862_ Slammed into as-25711. 04864_ Slammed into as-70386. 04866_ Slammed into as-27933. 04868_ Slammed into as-01659. 04868_ Destabilizing: System corrupted (+2). 04870_ Slammed into as-01659. 04870_ Destabilizing: System corrupted (+2). 04872_ Slammed into as-95385. 04872_ as-19043 triggered Stasis Trap. 04872_ A bubble of rippling energy engulfs the area. 04872_ Field strength at 93. 04872_ Field strength at 86. Map ----- +----------------------------------------------------+ | ????# #???# #?????????????????### ##### < #?????? | | ##### ##### ####????###########^^^ #?????? | | # # #????# /^^^ #?????? | | ##### ##### ## #????# ######### ##########?????? | | ????# #???# #######?# #???????# #??????????????? | | ????# #???# ## #?# #???????# #??????????????? | | ????# #??## ##""""######??????# #??????????????? | | ????# #### ######## #??????????????? | | ????# # #??????????????? | | ????###### #??????????????? | | ?????????# ## #### #########+########???????? | | ???????### ## ###?????# #!!!!!!#???????? | | ???????# " # # #?????# #???????? | | ???????# " # #?????##########???????? | | ???????# " # % ## #??????????????????????? | | ???????# " #??????????????????????? | | ???????### # ## ###??????????????????????? | | ?????????# # ^a # % ###########????????####### | | #####????# a #???????###""""" | | # #????# %= aa #???????###" | | # #????# % [ ##+#### #???????## | | # < #????# ## *#a=a* ## #??# ###########+#""" | | # #????# ## %#]!aa!## #?## + ^ | | + #?????# #######*aa!# # #?#T ######## | | # #?????# #????# #a]a##a#### ######## | | #?????# #????# [aa@aa + + #####+#""" | | ^ #?????# #????#########a#### ##### #?## | | #####?????# #????????????# #??# #???# #?###" | | ########### #????????????# #??# #???# #?###""""" | | #????#####???# #??# #???# #??####### | | #????#"T"#####+#### #???# #????????? | | ###########++#????#" #???# #????????? | | ??????????# #????###### ####### ####+######???? | | ??????????# #?????????# #?????# #???? | | ??????????# #?????????# ###???# #???? | | ??????????# #?????????# ##### ####### #???? | | ??????????# #?????????# + ??????# #???? | | ??????????# #?????????# ##### ??????#####???? | | ??????????# #?????????#^###???# ##??????????????? | | ??????????# #?????????#^#?????# "#??????????????? | | ??????????# #?????????# #?????# T#??????????????? | | ??????????# #?????????# #?????#""#??????????????? | | ??????????# #???????### #?????####??????????????? | | ??????????# #???????#"# #???????????????????????? | | ??????????# #???????#" #???????????????????????? | | ??????????# #???????#" #???????????????????????? | | ??????????# #???????#" #???????????????????????? | | ??????????# #???????#"# #???????????????????????? | | ??????????# #???????#####???????????????????????? | | ??????????# #???????????????????????????????????? | +----------------------------------------------------+ Best States ------------- Heat Dissipation 31 Energy Generation 18 Energy Capacity 265 Matter Stores 300 Matter Capacity 300 Sight Range 16 Terrain Scan Range 16 Terrain Scan Density 85 Armor Coverage 225 Core Shielding 20 Evasion (%) 50 Core Analysis 6 Recoil Reduction 3 Item Schematics ----------------- None Robot Schematics ------------------ None Fabricated ------------ Nothing Alien Tech Used ----------------- None Achievements -------------- Tank Challenges ------------ None Game ------ Seed TripodCoolingScrap Manual? 0 Play Time 00:59:40 Cumulative 36.5 hours Start 2024.06.06 @ 00:26:58 End 2024.06.06 @ 01:35:46 Sessions 1 Manual Loads 0 Difficulty Rogue Special Mode None Game No. 22 Rogue 15 Adventurer 7 Explorer 0 Win Type - Total 0 Types 0/0/0/0/0/0/0/0/0 Lore% 26 Gallery% 34 Achievement% 27 Wizard Run 0 Options --------- Layout 0 ASCII 0 Keyboard 1 Movement Vi Keybinds 0 Fullscreen 2 Font 24/Terminus Map View 76x50 Zoom Use 0% Tactical HUD 1 Map Filters NONE Filters NONE Steam 1 RUN: 98f55215-0c5f-4e74-a250-62e8085fc8f2